[Event "*** Titled Tuesday Blitz"]
[Site "Chess.com"]
[Date "2018.11.06"]
[Round "3"]
[White "jacky72"]
[Black "mishanick"]
[Result "0-1"]
[WhiteElo "2692"]
[BlackElo "2928"]
[TimeControl "180+2"]
[EndTime "13:42:27 PST"]
[Termination "mishanick won by resignation"]

1. d4 {[%clk 0:03:01.9]} 1... Nf6 {[%clk 0:02:57.6]} 2. c4 {[%clk 0:03:03.2]}
2... e6 {[%clk 0:02:58]} 3. Nf3 {[%clk 0:03:02.9]} 3... d5 {[%clk 0:02:58.8]} 4.
Nc3 {[%clk 0:03:03.4]} 4... dxc4 {[%clk 0:02:59.2]} 5. e3 {[%clk 0:03:03.7]}
5... a6 {[%clk 0:02:59.5]} 6. Bxc4 {[%clk 0:03:05]} 6... b5 {[%clk 0:03:00.3]}
7. Bb3 {[%clk 0:03:06.5]} 7... Nbd7 {[%clk 0:03:01.7]} 8. O-O {[%clk 0:03:07.7]}
8... c5 {[%clk 0:03:03.3]} 9. e4 {[%clk 0:03:06]} 9... cxd4 {[%clk 0:03:03]} 10.
Nxd4 {[%clk 0:03:06.1]} 10... Bb7 {[%clk 0:03:04]} 11. Re1 {[%clk 0:03:02.5]}
11... Ne5 {[%clk 0:02:56.2]} 12. Bf4 {[%clk 0:02:54.4]} 12... Ng6 {[%clk
0:02:57]} 13. Bg3 {[%clk 0:02:50.9]} 13... Bc5 {[%clk 0:02:56.9]} 14. Nf3 {[%clk
0:02:44.1]} 14... O-O {[%clk 0:02:54]} 15. Ne5 {[%clk 0:02:44.3]} 15... Qxd1
{[%clk 0:02:41.2]} 16. Bxd1 {[%clk 0:02:41.4]} 16... Rfd8 {[%clk 0:02:36.2]} 17.
Nxg6 {[%clk 0:02:40]} 17... hxg6 {[%clk 0:02:36.5]} 18. e5 {[%clk 0:02:29]}
18... Nh5 {[%clk 0:02:35]} 19. Bxh5 {[%clk 0:02:26.8]} 19... gxh5 {[%clk
0:02:36.9]} 20. Rad1 {[%clk 0:02:26.3]} 20... Bd4 {[%clk 0:02:20.3]} 21. Bh4
{[%clk 0:02:20.4]} 21... Bxc3 {[%clk 0:02:20.9]} 22. bxc3 {[%clk 0:02:18.1]}
22... Rdc8 {[%clk 0:01:47.4]} 23. Rd3 {[%clk 0:02:16.7]} 23... Bd5 {[%clk
0:01:47.1]} 24. a3 {[%clk 0:02:15.5]} 24... Rc4 {[%clk 0:01:47.7]} 25. Be7
{[%clk 0:02:15]} 25... Rac8 {[%clk 0:01:45.8]} 26. Bb4 {[%clk 0:02:15.5]} 26...
g5 {[%clk 0:01:44]} 27. f3 {[%clk 0:02:10]} 27... Kg7 {[%clk 0:01:43.3]} 28.
Red1 {[%clk 0:02:09.7]} 28... Kg6 {[%clk 0:01:40.8]} 29. Rd4 {[%clk 0:02:10.2]}
29... R4c6 {[%clk 0:01:39.6]} 30. Kf2 {[%clk 0:02:08.1]} 30... Ra8 {[%clk
0:01:39.1]} 31. R1d3 {[%clk 0:02:00.8]} 31... Kf5 {[%clk 0:01:19.9]} 32. Re3
{[%clk 0:01:59.1]} 32... a5 {[%clk 0:01:20.1]} 33. Bd6 {[%clk 0:01:57.3]} 33...
Rac8 {[%clk 0:01:20.7]} 34. Rdd3 {[%clk 0:01:51]} 34... Rc4 {[%clk 0:01:19.7]}
35. h3 {[%clk 0:01:42.8]} 35... h4 {[%clk 0:01:19.4]} 36. Be7 {[%clk 0:01:39.9]}
36... Kg6 {[%clk 0:01:18.5]} 37. Bd6 {[%clk 0:01:39.4]} 37... Ra4 {[%clk
0:01:16.6]} 38. Be7 {[%clk 0:01:32.6]} 38... Rc6 {[%clk 0:01:16]} 39. Bd6 {[%clk
0:01:29.4]} 39... f5 {[%clk 0:01:14.4]} 40. Re1 {[%clk 0:01:21.6]} 40... Rac4
{[%clk 0:00:55.2]} 41. Rb1 {[%clk 0:01:09]} 41... Rxc3 {[%clk 0:00:40.4]} 42.
Rxc3 {[%clk 0:01:09.9]} 42... Rxc3 {[%clk 0:00:42.3]} 43. Rxb5 {[%clk
0:01:11.2]} 43... Rc2+ {[%clk 0:00:43.3]} 44. Kg1 {[%clk 0:01:11.4]} 44... g4
{[%clk 0:00:44.4]} 45. hxg4 {[%clk 0:01:07.7]} 45... fxg4 {[%clk 0:00:45.3]} 46.
Rc5 {[%clk 0:00:56.4]} 46... Rd2 {[%clk 0:00:40.7]} 47. Be7 {[%clk 0:00:50.7]}
47... g3 {[%clk 0:00:23]} 48. Kf1 {[%clk 0:00:39.6]} 48... Rf2+ {[%clk
0:00:23.4]} 49. Kg1 {[%clk 0:00:40.2]} 49... Ra2 {[%clk 0:00:23.7]} 50. Kf1
{[%clk 0:00:37.2]} 50... h3 {[%clk 0:00:20.8]} 51. gxh3 {[%clk 0:00:36.6]} 51...
Bxf3 {[%clk 0:00:22.2]} 52. Rc1 {[%clk 0:00:31.8]} 52... Rf2+ {[%clk 0:00:21.7]}
53. Ke1 {[%clk 0:00:28.1]} 53... Re2+ {[%clk 0:00:21]} 54. Kf1 {[%clk
0:00:28.9]} 54... Rh2 {[%clk 0:00:19.5]} 55. Bc5 {[%clk 0:00:30.4]} 55... Kf5
{[%clk 0:00:20.7]} 56. Bg1 {[%clk 0:00:30.1]} 56... Re2 {[%clk 0:00:21.2]} 57.
Bb6 {[%clk 0:00:23.2]} 57... Rh2 {[%clk 0:00:21.9]} 58. Rc3 {[%clk 0:00:22.4]}
58... Kf4 {[%clk 0:00:13.9]} 59. Be3+ {[%clk 0:00:20.6]} 59... Ke4 {[%clk
0:00:15.1]} 60. Bg1 {[%clk 0:00:21.8]} 60... Rxh3 {[%clk 0:00:16.4]} 61. Rc4+
{[%clk 0:00:21.8]} 61... Kf5 {[%clk 0:00:17.6]} 62. Rc3 {[%clk 0:00:21.2]} 62...
Be4 {[%clk 0:00:18]} 63. Rc5 {[%clk 0:00:17.5]} 63... g2+ {[%clk 0:00:17.9]} 64.
Ke1 {[%clk 0:00:16.7]} 64... Rxa3 {[%clk 0:00:19.3]} 65. Rc1 {[%clk 0:00:16.8]}
65... Ra2 {[%clk 0:00:20.6]} 66. Bh2 {[%clk 0:00:17.6]} 66... Bf3 {[%clk
0:00:21.2]} 67. Rc3 {[%clk 0:00:06.5]} 67... Kg4 {[%clk 0:00:22.2]} 68. Rc4+
{[%clk 0:00:07.4]} 68... Kh3 {[%clk 0:00:23.2]} 69. Bg1 {[%clk 0:00:08.8]} 69...
Ra1+ {[%clk 0:00:24.2]} 70. Kf2 {[%clk 0:00:08.7]} 70... Rf1+ {[%clk 0:00:25.2]}
71. Ke3 {[%clk 0:00:10.2]} 71... Rxg1 {[%clk 0:00:26.7]} 72. Kxf3 {[%clk
0:00:11.8]} 72... Rf1+ {[%clk 0:00:27.9]} 73. Ke2 {[%clk 0:00:13.3]} 73... g1=Q
{[%clk 0:00:28.3]} 74. Rg4 {[%clk 0:00:14.8]} 74... Qxg4+ {[%clk 0:00:28.5]} 75.
Kxf1 {[%clk 0:00:14.5]} 75... Qg2+ {[%clk 0:00:29.4]} 0-1

[Event "*** Titled Tuesday Blitz"]
[Site "Chess.com"]
[Date "2018.11.06"]
[Round "3"]
[White "MITerryble"]
[Black "kuli4ik"]
[Result "1/2-1/2"]
[WhiteElo "2755"]
[BlackElo "2782"]
[TimeControl "180+2"]
[EndTime "13:42:55 PST"]
[Termination "Game drawn by agreement"]

1. d4 {[%clk 0:03:01.9]} 1... d5 {[%clk 0:03:00.8]} 2. Nf3 {[%clk 0:03:02.8]}
2... c6 {[%clk 0:03:01.3]} 3. c4 {[%clk 0:03:03]} 3... Nf6 {[%clk 0:03:02.7]} 4.
Nc3 {[%clk 0:03:02.6]} 4... dxc4 {[%clk 0:03:03.8]} 5. a4 {[%clk 0:03:03.6]}
5... Bf5 {[%clk 0:03:04.2]} 6. Ne5 {[%clk 0:03:04.2]} 6... Na6 {[%clk
0:03:05.2]} 7. e3 {[%clk 0:03:00]} 7... Nb4 {[%clk 0:03:05.1]} 8. Bxc4 {[%clk
0:03:00.8]} 8... e6 {[%clk 0:03:06.4]} 9. O-O {[%clk 0:03:00.5]} 9... Bc2 {[%clk
0:03:07.9]} 10. Qe2 {[%clk 0:03:00.4]} 10... Be7 {[%clk 0:03:09.4]} 11. Bd2
{[%clk 0:02:36.5]} 11... O-O {[%clk 0:03:07.8]} 12. Rfc1 {[%clk 0:02:22.5]}
12... a5 {[%clk 0:03:02.9]} 13. Na2 {[%clk 0:02:22.6]} 13... Nxa2 {[%clk
0:03:01.3]} 14. Rxc2 {[%clk 0:02:21.2]} 14... Nb4 {[%clk 0:03:02.3]} 15. Rcc1
{[%clk 0:02:22]} 15... Qb6 {[%clk 0:02:52.7]} 16. Rab1 {[%clk 0:02:15.5]} 16...
Rad8 {[%clk 0:02:45.8]} 17. Be1 {[%clk 0:02:12.5]} 17... Nbd5 {[%clk 0:02:37.6]}
18. Nd3 {[%clk 0:02:04.8]} 18... Nb4 {[%clk 0:02:36.5]} 19. Ne5 {[%clk
0:01:59.5]} 19... Nbd5 {[%clk 0:02:37.3]} 20. Nd3 {[%clk 0:02:00.3]} 20... Nb4
{[%clk 0:02:38.4]} 21. Bxb4 {[%clk 0:01:51.9]} 21... Bxb4 {[%clk 0:02:38.6]} 22.
Rd1 {[%clk 0:01:44.7]} 22... Be7 {[%clk 0:02:35.6]} 23. Qc2 {[%clk 0:01:42.9]}
23... Rd7 {[%clk 0:02:32.7]} 24. Ne5 {[%clk 0:01:40.2]} 24... Rd6 {[%clk
0:02:33.1]} 25. Be2 {[%clk 0:01:40.3]} 25... Rdd8 {[%clk 0:02:26.9]} 26. Nc4
{[%clk 0:01:36.2]} 26... Qc7 {[%clk 0:02:27.7]} 27. Qb3 {[%clk 0:01:36.8]} 27...
Bb4 {[%clk 0:02:26.5]} 28. Rbc1 {[%clk 0:01:36.6]} 28... Rfe8 {[%clk 0:02:17.9]}
29. Ne5 {[%clk 0:01:35.2]} 29... Nd7 {[%clk 0:02:15.8]} 30. Nd3 {[%clk
0:01:33.3]} 30... Bd6 {[%clk 0:02:16.7]} 31. g3 {[%clk 0:01:32.2]} 31... Qb6
{[%clk 0:02:17.5]} 32. Qc2 {[%clk 0:01:25.2]} 32... e5 {[%clk 0:02:07.4]} 33.
dxe5 {[%clk 0:01:26.1]} 33... Nxe5 {[%clk 0:02:07.7]} 34. Nxe5 {[%clk
0:01:27.3]} 34... Bxe5 {[%clk 0:02:08.9]} 35. b3 {[%clk 0:01:28.1]} 35... g6
{[%clk 0:02:07.7]} 36. Bc4 {[%clk 0:01:29]} 36... Kg7 {[%clk 0:01:58.4]} 37.
Rxd8 {[%clk 0:01:28.8]} 37... Rxd8 {[%clk 0:01:58.9]} 38. Rd1 {[%clk 0:01:30.1]}
38... Bf6 {[%clk 0:01:53.2]} 39. Rd3 {[%clk 0:01:26.8]} 39... Rxd3 {[%clk
0:01:51.9]} 40. Qxd3 {[%clk 0:01:28.7]} 40... Qd8 {[%clk 0:01:53.2]} 41. Qe2
{[%clk 0:01:23.8]} 41... Qd7 {[%clk 0:01:50.6]} 42. Kg2 {[%clk 0:01:22.7]} 42...
h5 {[%clk 0:01:51.6]} 43. Qe1 {[%clk 0:01:09.9]} 43... b5 {[%clk 0:01:50]} 44.
axb5 {[%clk 0:01:02.5]} 44... cxb5 {[%clk 0:01:51.9]} 45. Be2 {[%clk 0:01:02.2]}
45... a4 {[%clk 0:01:51.4]} 46. bxa4 {[%clk 0:01:03.2]} 46... bxa4 {[%clk
0:01:53.3]} 47. Qb1 {[%clk 0:01:00.7]} 47... a3 {[%clk 0:01:50]} 48. Qa2 {[%clk
0:01:00.1]} 48... Qe7 {[%clk 0:01:41.1]} 49. h4 {[%clk 0:00:56.9]} 49... Qb7+
{[%clk 0:01:31.5]} 50. Bf3 {[%clk 0:00:56.8]} 50... Qb2 {[%clk 0:01:32.3]} 51.
Bd5 {[%clk 0:00:57.5]} 51... Qxa2 {[%clk 0:01:32.6]} 52. Bxa2 {[%clk 0:00:58.8]}
52... Be7 {[%clk 0:01:33.7]} 53. Kf3 {[%clk 0:00:49]} 53... f5 {[%clk
0:01:34.4]} 54. e4 {[%clk 0:00:48]} 54... Kf6 {[%clk 0:01:35.6]} 55. exf5 {[%clk
0:00:48.9]} 55... gxf5 {[%clk 0:01:37.5]} 56. Ke3 {[%clk 0:00:43.4]} 56... Bc5+
{[%clk 0:01:38.3]} 57. Ke2 {[%clk 0:00:44.8]} 57... Ke5 {[%clk 0:01:36.6]} 58.
f3 {[%clk 0:00:34.7]} 58... Kd4 {[%clk 0:01:37.5]} 59. Kf1 {[%clk 0:00:34.2]}
59... f4 {[%clk 0:01:28.1]} 60. g4 {[%clk 0:00:31.8]} 60... hxg4 {[%clk
0:01:21.6]} 61. fxg4 {[%clk 0:00:33.7]} 61... Be7 {[%clk 0:01:22.9]} 62. g5
{[%clk 0:00:29.6]} 62... Ke3 {[%clk 0:01:21.4]} 63. g6 {[%clk 0:00:21.4]} 63...
Bf8 {[%clk 0:01:19.4]} 64. h5 {[%clk 0:00:23.3]} 64... Kf3 {[%clk 0:01:19.2]}
65. Be6 {[%clk 0:00:22.8]} 65... Kg3 {[%clk 0:01:19.3]} 66. Bf7 {[%clk
0:00:23.7]} 66... Kg4 {[%clk 0:01:17.6]} 67. Kf2 {[%clk 0:00:22.9]} 67... Bg7
{[%clk 0:01:18]} 68. Kg2 {[%clk 0:00:20.9]} 68... Kxh5 {[%clk 0:01:18.7]} 69.
Kf3 {[%clk 0:00:22.1]} 69... Kg5 {[%clk 0:01:19.9]} 70. Be6 {[%clk 0:00:22.8]}
70... Kf6 {[%clk 0:01:16.7]} 71. Bf7 {[%clk 0:00:23.9]} 71... Ke5 {[%clk
0:01:17.8]} 72. Kf2 {[%clk 0:00:24.5]} 72... Ke4 {[%clk 0:01:17.9]} 73. Ke2
{[%clk 0:00:25.7]} 73... Bd4 {[%clk 0:01:18]} 74. Kf1 {[%clk 0:00:25.8]} 74...
Kf3 {[%clk 0:01:18.4]} 75. Bd5+ {[%clk 0:00:26.3]} 75... Kg3 {[%clk 0:01:19.3]}
76. Bf7 {[%clk 0:00:27.4]} 76... Kf3 {[%clk 0:01:15.8]} 77. Bd5+ {[%clk
0:00:28.4]} 77... Ke3 {[%clk 0:01:17.1]} 78. Bf7 {[%clk 0:00:30.3]} 78... Kd3
{[%clk 0:01:16.6]} 79. Be6 {[%clk 0:00:30.6]} 79... Kd2 {[%clk 0:01:09]} 80. Bf7
{[%clk 0:00:31.3]} 80... Be5 {[%clk 0:01:09.5]} 81. Be6 {[%clk 0:00:32.2]} 81...
Ke3 {[%clk 0:01:04.2]} 82. Bf7 {[%clk 0:00:32.6]} 82... Bd4 {[%clk 0:01:03.9]}
83. Be6 {[%clk 0:00:33]} 83... Bc3 {[%clk 0:01:03.4]} 84. Bf7 {[%clk 0:00:34]}
84... Bf6 {[%clk 0:01:04]} 85. Be6 {[%clk 0:00:34.9]} 85... Bd4 {[%clk
0:01:04.2]} 86. Bf7 {[%clk 0:00:35.6]} 86... Ke4 {[%clk 0:01:05.7]} 87. Be6
{[%clk 0:00:34.7]} 87... Bc3 {[%clk 0:01:04.6]} 88. Bf7 {[%clk 0:00:35]} 88...
Kf5 {[%clk 0:01:05.9]} 89. Kf2 {[%clk 0:00:34.4]} 89... Bd4+ {[%clk 0:01:06.8]}
90. Kf3 {[%clk 0:00:35.7]} 90... Be5 {[%clk 0:01:07.6]} 91. Kf2 {[%clk
0:00:36.7]} 91... Bf6 {[%clk 0:01:07.9]} 92. Kf3 {[%clk 0:00:37.8]} 92... Bd4
{[%clk 0:01:09.1]} 93. Ke2 {[%clk 0:00:38.5]} 93... Kg4 {[%clk 0:01:07.4]} 94.
Kf1 {[%clk 0:00:39.3]} 94... Kg5 {[%clk 0:01:05]} 95. Kg2 {[%clk 0:00:39.1]}
95... Be5 {[%clk 0:01:04.7]} 96. Kf3 {[%clk 0:00:39.6]} 96... Bf6 {[%clk
0:01:06.1]} 97. Kf2 {[%clk 0:00:39.9]} 97... Bg7 {[%clk 0:01:08]} 98. Kf3 {[%clk
0:00:38.1]} 98... Kf5 {[%clk 0:01:08.6]} 99. Kf2 {[%clk 0:00:36.7]} 99... a2
{[%clk 0:01:10.5]} 100. Bxa2 {[%clk 0:00:36.6]} 100... Kxg6 {[%clk 0:01:12.4]}
101. Kf3 {[%clk 0:00:37.4]} 101... Kf5 {[%clk 0:01:14.3]} 102. Bb1+ {[%clk
0:00:38.8]} 102... Kg5 {[%clk 0:01:14.9]} 103. Bc2 {[%clk 0:00:40.7]} 103... Bf6
{[%clk 0:01:15.5]} 1/2-1/2

[Event "*** Titled Tuesday Blitz"]
[Site "Chess.com"]
[Date "2018.11.06"]
[Round "3"]
[White "Sanan_Sjugirov"]
[Black "Ramosha"]
[Result "1/2-1/2"]
[WhiteElo "2859"]
[BlackElo "2478"]
[TimeControl "180+2"]
[EndTime "13:44:18 PST"]
[Termination "Game drawn by agreement"]

1. e4 {[%clk 0:03:01.9]} 1... e6 {[%clk 0:03:00.7]} 2. d4 {[%clk 0:03:02.4]}
2... d5 {[%clk 0:03:02]} 3. Nd2 {[%clk 0:03:03.2]} 3... Be7 {[%clk 0:03:02.6]}
4. Ngf3 {[%clk 0:03:03.7]} 4... Nf6 {[%clk 0:02:57.9]} 5. e5 {[%clk 0:03:04.9]}
5... Nfd7 {[%clk 0:02:58.7]} 6. c3 {[%clk 0:03:06.1]} 6... c5 {[%clk 0:02:59.4]}
7. Bd3 {[%clk 0:03:07.1]} 7... b6 {[%clk 0:03:00.1]} 8. O-O {[%clk 0:02:44.8]}
8... Ba6 {[%clk 0:02:58]} 9. Ne1 {[%clk 0:02:28.9]} 9... O-O {[%clk 0:02:39.6]}
10. Qg4 {[%clk 0:02:27.1]} 10... Qc8 {[%clk 0:02:06.5]} 11. Bxa6 {[%clk
0:02:06.3]} 11... Nxa6 {[%clk 0:02:00.9]} 12. Nd3 {[%clk 0:02:06.3]} 12... cxd4
{[%clk 0:01:37.4]} 13. cxd4 {[%clk 0:02:08.2]} 13... Nb4 {[%clk 0:01:37.1]} 14.
Nxb4 {[%clk 0:02:07.3]} 14... Bxb4 {[%clk 0:01:39]} 15. Nf3 {[%clk 0:02:08.1]}
15... Qc2 {[%clk 0:01:14.1]} 16. Bh6 {[%clk 0:01:40.5]} 16... Qg6 {[%clk
0:01:12.5]} 17. Qxg6 {[%clk 0:01:41.5]} 17... hxg6 {[%clk 0:01:14.4]} 18. Bg5
{[%clk 0:01:41.6]} 18... Rfc8 {[%clk 0:01:11.8]} 19. Rac1 {[%clk 0:01:41.6]}
19... f6 {[%clk 0:01:07.7]} 20. exf6 {[%clk 0:01:15.9]} 20... gxf6 {[%clk
0:01:08.2]} 21. Bf4 {[%clk 0:01:17.3]} 21... Kf7 {[%clk 0:00:56.6]} 22. h4
{[%clk 0:01:14.9]} 22... b5 {[%clk 0:00:41.6]} 23. Bc7 {[%clk 0:00:59.6]} 23...
Nb6 {[%clk 0:00:26.5]} 24. b3 {[%clk 0:00:27.5]} 24... Ke7 {[%clk 0:00:27.1]}
25. Bf4 {[%clk 0:00:20.2]} 25... Ba3 {[%clk 0:00:26.3]} 26. Rce1 {[%clk
0:00:15.6]} 26... Kf7 {[%clk 0:00:25.7]} 27. Re2 {[%clk 0:00:15.8]} 27... Nd7
{[%clk 0:00:21.7]} 28. g4 {[%clk 0:00:15]} 28... Rc6 {[%clk 0:00:18.6]} 29. Kg2
{[%clk 0:00:15.6]} 29... Rac8 {[%clk 0:00:13.5]} 30. Rfe1 {[%clk 0:00:16.3]}
30... Nf8 {[%clk 0:00:14.1]} 31. g5 {[%clk 0:00:16.2]} 31... Be7 {[%clk
0:00:07.2]} 32. gxf6 {[%clk 0:00:16.9]} 32... Bxf6 {[%clk 0:00:08.8]} 33. Bg5
{[%clk 0:00:18]} 33... Rc2 {[%clk 0:00:06.4]} 34. Kg3 {[%clk 0:00:17.4]} 34...
Rxe2 {[%clk 0:00:06.7]} 35. Rxe2 {[%clk 0:00:19.3]} 35... Rc3 {[%clk 0:00:08]}
36. Kg4 {[%clk 0:00:18.4]} 36... Nd7 {[%clk 0:00:09.1]} 37. Be3 {[%clk
0:00:09.9]} 37... Be7 {[%clk 0:00:08.9]} 38. Kg3 {[%clk 0:00:07.7]} 38... Bd6+
{[%clk 0:00:09.7]} 39. Kg2 {[%clk 0:00:09.2]} 39... Be7 {[%clk 0:00:10.8]} 40.
Bg5 {[%clk 0:00:08.2]} 40... a5 {[%clk 0:00:09.7]} 41. Bxe7 {[%clk 0:00:07.1]}
41... Kxe7 {[%clk 0:00:10.8]} 42. Ng5 {[%clk 0:00:08.7]} 42... Nf8 {[%clk
0:00:11.9]} 43. Nf3 {[%clk 0:00:09.5]} 43... Nd7 {[%clk 0:00:12.2]} 44. Ng5
{[%clk 0:00:07.4]} 44... Nf8 {[%clk 0:00:13]} 45. Rd2 {[%clk 0:00:08.4]} 45...
a4 {[%clk 0:00:13.5]} 46. bxa4 {[%clk 0:00:09.3]} 46... bxa4 {[%clk 0:00:14.8]}
47. Rb2 {[%clk 0:00:10.5]} 47... a3 {[%clk 0:00:14]} 48. Rb7+ {[%clk 0:00:11.5]}
48... Nd7 {[%clk 0:00:14.9]} 49. Ra7 {[%clk 0:00:12.7]} 49... Kd6 {[%clk
0:00:14]} 50. Ra6+ {[%clk 0:00:13.1]} 50... Kc7 {[%clk 0:00:14.9]} 51. Nxe6+
{[%clk 0:00:13.7]} 51... Kb7 {[%clk 0:00:16.1]} 52. Ra5 {[%clk 0:00:13.9]} 52...
Nb6 {[%clk 0:00:13.3]} 53. Nc5+ {[%clk 0:00:13.1]} 53... Kc6 {[%clk 0:00:14]}
54. Ra7 {[%clk 0:00:10.8]} 54... Nc4 {[%clk 0:00:13.3]} 55. Ne6 {[%clk
0:00:06.1]} 55... Rc2 {[%clk 0:00:12.9]} 56. Nf4 {[%clk 0:00:07.4]} 56... Rxa2
{[%clk 0:00:12.3]} 57. Nxg6 {[%clk 0:00:08.7]} 57... Kb6 {[%clk 0:00:09.8]} 58.
Ra8 {[%clk 0:00:08.9]} 58... Kb7 {[%clk 0:00:10.9]} 59. Ra4 {[%clk 0:00:09.4]}
59... Rd2 {[%clk 0:00:08]} 60. h5 {[%clk 0:00:08.7]} 60... a2 {[%clk 0:00:08.3]}
61. h6 {[%clk 0:00:07.8]} 61... Nb6 {[%clk 0:00:09.5]} 62. Ra3 {[%clk
0:00:07.7]} 62... Nc4 {[%clk 0:00:10.5]} 63. Ra4 {[%clk 0:00:08.7]} 63... Nb6
{[%clk 0:00:11.5]} 64. Ra5 {[%clk 0:00:08.7]} 64... Nc4 {[%clk 0:00:12.5]} 65.
Ra4 {[%clk 0:00:09.4]} 65... Nb6 {[%clk 0:00:13.4]} 66. Rxa2 {[%clk 0:00:11.1]}
66... Rxa2 {[%clk 0:00:13.7]} 67. h7 {[%clk 0:00:12.6]} 67... Ra8 {[%clk
0:00:10.9]} 68. h8=Q {[%clk 0:00:13.9]} 68... Rxh8 {[%clk 0:00:11.7]} 69. Nxh8
{[%clk 0:00:15.8]} 69... Kc6 {[%clk 0:00:08.1]} 70. Kf3 {[%clk 0:00:17]} 70...
Kd6 {[%clk 0:00:08.6]} 71. Kf4 {[%clk 0:00:17.3]} 71... Nc4 {[%clk 0:00:08.4]}
72. Nf7+ {[%clk 0:00:18.2]} 72... Ke6 {[%clk 0:00:08.7]} 73. Nd8+ {[%clk
0:00:17.6]} 73... Kf6 {[%clk 0:00:07.8]} 74. Nc6 {[%clk 0:00:18.1]} 74... Nb2
{[%clk 0:00:07]} 75. Ne5 {[%clk 0:00:18.7]} 75... Nd1 {[%clk 0:00:06]} 76. f3
{[%clk 0:00:17.1]} 76... Nb2 {[%clk 0:00:06.9]} 77. Ng4+ {[%clk 0:00:17.1]}
77... Ke6 {[%clk 0:00:07.9]} 78. Kg5 {[%clk 0:00:18]} 78... Nd1 {[%clk
0:00:07.4]} 79. f4 {[%clk 0:00:18.9]} 79... Nc3 {[%clk 0:00:07.7]} 80. f5+
{[%clk 0:00:20]} 80... Kd6 {[%clk 0:00:05.2]} 81. f6 {[%clk 0:00:19.9]} 81...
Ne2 {[%clk 0:00:06.3]} 82. Kg6 {[%clk 0:00:19.4]} 82... Nxd4 {[%clk 0:00:07.2]}
83. f7 {[%clk 0:00:09]} 83... Ne6 {[%clk 0:00:08]} 84. Kf6 {[%clk 0:00:09.1]}
84... d4 {[%clk 0:00:07.8]} 85. Ne5 {[%clk 0:00:08.2]} 85... Kd5 {[%clk
0:00:03.9]} 86. Nd3 {[%clk 0:00:07.7]} 86... Kd6 {[%clk 0:00:03.9]} 87. Nf4
{[%clk 0:00:07.3]} 87... Nf8 {[%clk 0:00:04]} 88. Kg7 {[%clk 0:00:08]} 88... Nd7
{[%clk 0:00:04.9]} 89. Nd3 {[%clk 0:00:07.6]} 89... Kd5 {[%clk 0:00:05.2]} 90.
Nf4+ {[%clk 0:00:08.4]} 90... Ke4 {[%clk 0:00:04.8]} 91. Nh5 {[%clk 0:00:09.6]}
91... Ke5 {[%clk 0:00:03.3]} 92. Nf6 {[%clk 0:00:09.8]} 92... Nc5 {[%clk
0:00:04.1]} 93. Kg6 {[%clk 0:00:06.4]} 93... Ne6 {[%clk 0:00:04.2]} 94. Nd7+
{[%clk 0:00:07.7]} 94... Kd6 {[%clk 0:00:03.2]} 95. Nf6 {[%clk 0:00:07.1]} 95...
d3 {[%clk 0:00:03.6]} 96. Ne4+ {[%clk 0:00:08.7]} 96... Kd5 {[%clk 0:00:04.9]}
97. Nd2 {[%clk 0:00:09.5]} 97... Kd4 {[%clk 0:00:05.6]} 98. Kf6 {[%clk
0:00:10.4]} 98... Nf8 {[%clk 0:00:06.6]} 99. Kg7 {[%clk 0:00:11.2]} 99... Nd7
{[%clk 0:00:07.5]} 100. Nf3+ {[%clk 0:00:12.8]} 100... Ke4 {[%clk 0:00:07.2]}
101. Nd2+ {[%clk 0:00:12]} 1/2-1/2

[Event "*** Titled Tuesday Blitz"]
[Site "Chess.com"]
[Date "2018.11.06"]
[Round "4"]
[White "sere99"]
[Black "juniortay"]
[Result "1-0"]
[WhiteElo "2312"]
[BlackElo "2370"]
[TimeControl "180+2"]
[EndTime "13:47:16 PST"]
[Termination "sere99 won by resignation"]

1. d4 {[%clk 0:03:01.9]} 1... Nf6 {[%clk 0:03:00.3]} 2. c4 {[%clk 0:03:03.3]}
2... g6 {[%clk 0:03:01.4]} 3. Nf3 {[%clk 0:03:04.7]} 3... Bg7 {[%clk 0:03:03.2]}
4. g3 {[%clk 0:03:06.3]} 4... d6 {[%clk 0:03:05.1]} 5. Bg2 {[%clk 0:03:07.7]}
5... O-O {[%clk 0:03:07]} 6. O-O {[%clk 0:03:09.2]} 6... c6 {[%clk 0:03:08.9]}
7. Nc3 {[%clk 0:03:10.3]} 7... Qa5 {[%clk 0:03:10.4]} 8. e4 {[%clk 0:03:11.2]}
8... Bg4 {[%clk 0:03:11.4]} 9. h3 {[%clk 0:03:11.5]} 9... Bxf3 {[%clk
0:03:12.4]} 10. Bxf3 {[%clk 0:03:13.4]} 10... a6 {[%clk 0:03:13.9]} 11. Bg2
{[%clk 0:03:10.6]} 11... Nbd7 {[%clk 0:03:11.5]} 12. Re1 {[%clk 0:03:11.6]}
12... e5 {[%clk 0:03:00]} 13. Be3 {[%clk 0:03:10.5]} 13... Rfe8 {[%clk
0:02:59.5]} 14. Qd2 {[%clk 0:03:07.8]} 14... exd4 {[%clk 0:02:56]} 15. Bxd4
{[%clk 0:03:07.2]} 15... Nc5 {[%clk 0:02:54]} 16. Rad1 {[%clk 0:02:49.2]} 16...
Rad8 {[%clk 0:02:47.1]} 17. Bxf6 {[%clk 0:02:35.9]} 17... Bxf6 {[%clk
0:02:43.8]} 18. Nd5 {[%clk 0:02:37.5]} 1-0

[Event "*** Titled Tuesday Blitz"]
[Site "Chess.com"]
[Date "2018.11.06"]
[Round "4"]
[White "OscarAng"]
[Black "SimonKnightRivendell"]
[Result "1-0"]
[WhiteElo "2116"]
[BlackElo "1970"]
[TimeControl "180+2"]
[EndTime "13:48:01 PST"]
[Termination "OscarAng won by resignation"]

1. e4 {[%clk 0:03:01.9]} 1... c5 {[%clk 0:02:54]} 2. Nf3 {[%clk 0:03:02.7]} 2...
d6 {[%clk 0:02:54.8]} 3. d4 {[%clk 0:03:02.3]} 3... cxd4 {[%clk 0:02:55.9]} 4.
Nxd4 {[%clk 0:03:04.2]} 4... Nf6 {[%clk 0:02:56.6]} 5. Nc3 {[%clk 0:03:02.8]}
5... a6 {[%clk 0:02:57.9]} 6. Bg5 {[%clk 0:02:57.7]} 6... e6 {[%clk 0:02:58]} 7.
f4 {[%clk 0:02:56.2]} 7... Be7 {[%clk 0:02:58.7]} 8. Qf3 {[%clk 0:02:55.1]} 8...
Qc7 {[%clk 0:02:57.2]} 9. O-O-O {[%clk 0:02:53.2]} 9... b5 {[%clk 0:02:57]} 10.
Bxf6 {[%clk 0:02:51.8]} 10... gxf6 {[%clk 0:02:55.4]} 11. e5 {[%clk 0:02:51.1]}
11... Bb7 {[%clk 0:02:56]} 12. Qh5 {[%clk 0:02:44]} 12... Kf8 {[%clk 0:02:26.7]}
13. Qh6+ {[%clk 0:02:42.5]} 13... Ke8 {[%clk 0:02:26.1]} 14. Qg7 {[%clk
0:02:41.7]} 14... Rf8 {[%clk 0:02:25.5]} 15. exf6 {[%clk 0:02:40.7]} 15... Bd8
{[%clk 0:02:21.5]} 16. Bxb5+ {[%clk 0:02:31.2]} 16... Nd7 {[%clk 0:02:17.3]} 17.
Rhe1 {[%clk 0:02:28.6]} 17... Bxf6 {[%clk 0:01:52.7]} 18. Bxd7+ {[%clk
0:02:22.1]} 18... Kxd7 {[%clk 0:01:53.3]} 19. Qxf6 {[%clk 0:02:20.1]} 1-0